bitfinex/quotes_ETHUSD_20250324
["timestamp","ask_amount","ask_price","bid_price","bid_amount"]
[1742826293376,0.898167,2098.3,2097.8,5.323]
[1742826293576,1.2161,2098.4,2097.8,5.323]
[1742826294175,0.55,2098.9,2097.8,5.323]
[1742826294381,1.1816,2098.8,2097.8,5.37066725]
[1742826295177,1.1816,2098.8,2097.8,5.323]
[1742826295746,1.1816,2098.8,2097.9,0.55]
[1742826295947,1.1816,2098.8,2098.1,0.55]
[1742826296164,1.1816,2098.8,2098.0,1.1869]
[1742826296165,1.1816,2098.8,2098.2,5.303]
[1742826300383,3.0,2098.6,2098.2,5.303]
[1742826300581,4.76569,2098.4,2098.2,5.303]
[1742826300779,4.76576,2098.3,2098.2,5.303]
[1742826301190,4.2396,2098.3,2097.7,25.187]
[1742826301365,4.76603,2098.2,2097.8,10.03989]
[1742826301713,1.2396,2098.3,2097.8,5.273]
[1742826302119,4.76545,2098.5,2098.1,4.76612]
[1742826302404,1.1799,2098.6,2098.2,5.271]
[1742826302709,1.1799,2098.6,2098.3,5.269]
[1742826303362,4.7653,2098.5,2098.3,5.269]
[1742826303591,7.76553,2098.4,2098.3,5.269]
[1742826303893,7.76592,2098.3,2098.1,25.19]
[1742826304112,7.76598,2098.2,2098.1,25.19]
[1742826304405,4.2421,2098.2,2098.1,25.19]
[1742826304562,4.2421,2098.2,2098.1,30.452]
[1742826304761,4.66631,2098.2,2098.1,30.452]
[1742826305046,4.66631,2098.2,2095.5,6.31644382]
[1742826305047,4.66631,2098.2,2097.5,25.191]
[1742826305294,1.2382,2098.0,2097.6,5.259]
[1742826305592,7.76712,2097.7,2097.6,5.259]
[1742826305771,9.02942,2097.7,2097.6,5.259]
[1742826305966,9.02942,2097.7,2097.5,25.191]
[1742826305967,7.76735,2097.6,2097.5,25.191]
[1742826306184,7.76735,2097.6,2096.9,25.193]
[1742826306185,4.76824,2097.3,2096.9,25.193]
[1742826306368,4.76824,2097.3,2097.0,5.254]
[1742826306369,4.76817,2097.3,2097.0,5.254]
[1742826306570,4.76848,2097.1,2097.0,5.254]
[1742826306918,3.0,2097.3,2097.0,5.254]
[1742826307390,4.76848,2097.1,2097.0,5.254]
[1742826307978,4.76842,2097.2,2097.0,5.254]
[1742826308288,4.76838,2097.2,2097.0,5.254]
[1742826308893,4.76848,2097.1,2097.0,5.254]
[1742826309358,3.0,2097.3,2097.0,5.254]
[1742826309564,7.76823,2097.3,2097.0,5.254]
[1742826309766,4.76839,2097.2,2097.0,5.254]
[1742826310160,4.76979,2096.6,2096.1,25.198]
[1742826310383,4.76933,2096.8,2096.3,5.252]
[1742826310582,4.76912,2096.9,2096.2,5.94934]
[1742826310783,3.0,2096.7,2096.3,10.02127]
[1742826310983,1.2204,2096.6,2096.1,29.96873]
[1742826311184,3.0,2096.9,2096.5,4.76977]
[1742826311397,6.765619,2097.2,2096.6,1.2314]
[1742826311398,4.2204,2097.2,2096.6,1.2314]
[1742826311697,8.98867,2097.2,2096.7,4.76925]
[1742826311880,4.76859,2097.1,2096.6,6.00099]
[1742826312192,4.76872,2097.0,2096.8,5.267]
[1742826312596,4.76926,2096.8,2096.3,4.77009]
[1742826312895,4.76873,2097.0,2096.5,4.76966]
[1742826313260,3.0,2097.0,2096.6,4.76949]
[1742826313464,4.76848,2097.1,2096.7,4.76935]
[1742826313691,4.76884,2097.0,2096.8,5.279]
[1742826313894,7.76884,2097.0,2096.9,5.276]
[1742826314100,8.367764,2097.0,2096.9,5.276]
[1742826314661,8.367764,2097.0,2096.3,1.2314]
[1742826314662,4.7696,2096.7,2096.3,1.2314]
[1742826314869,4.7696,2096.7,2096.4,5.271]
[1742826315201,4.76928,2096.8,2096.4,5.271]
[1742826315795,9.53867,2096.8,2096.4,5.271]
[1742826316100,4.76927,2096.8,2096.4,5.271]
[1742826316402,4.76951,2096.7,2096.5,5.26]
[1742826316618,4.76962,2096.6,2096.1,31.17395]
[1742826316777,4.76994,2096.5,2096.2,5.258]
[1742826317269,4.76994,2096.5,2096.3,5.257]
[1742826317671,4.77008,2096.4,2096.3,5.257]
[1742826317886,4.76994,2096.5,2096.3,5.257]
[1742826318091,4.77008,2096.4,2096.3,5.257]
[1742826318287,4.77034,2096.3,2096.1,25.198]
[1742826318486,4.77053,2096.2,2096.1,25.198]
[1742826318816,8.96723,2096.2,2096.1,30.449]
[1742826319099,3.0,2096.2,2096.1,30.449]
[1742826319467,4.7701,2096.4,2096.1,30.449]
[1742826319798,7.77034,2096.3,2096.1,30.449]
[1742826320004,7.77008,2096.4,2096.1,30.449]
[1742826320215,4.77032,2096.3,2096.1,30.449]
[1742826320781,1.1967,2096.5,2096.2,4.77052]
[1742826320981,4.7688,2097.0,2096.5,4.76966]
[1742826321176,4.76898,2096.9,2096.6,5.238]
[1742826321812,7.76939,2096.7,2096.6,5.238]
[1742826322317,8.93389,2096.7,2096.6,5.238]
[1742826324192,4.1645,2096.7,2096.6,5.238]
[1742826324382,3.0,2096.7,2096.6,5.238]
[1742826324717,7.76939,2096.7,2096.6,5.238]
[1742826324914,3.0,2096.7,2096.6,5.238]
[1742826325103,3.0,2097.0,2096.7,4.76926]
[1742826325304,3.0,2097.0,2096.6,10.00758]
[1742826325504,4.76867,2097.1,2096.7,4.76938]
[1742826325719,3.0,2096.9,2096.6,10.00745]
[1742826325918,3.0,2097.0,2096.7,4.76921]
[1742826326119,1.2301,2097.4,2096.9,4.76886]
[1742826326337,1.2301,2097.4,2097.0,5.218]
[1742826326624,1.2301,2097.4,2097.0,30.43]
[1742826326625,4.76848,2097.1,2097.0,30.43]
[1742826326786,9.982355,2097.1,2097.0,30.43]
[1742826328121,9.982355,2097.1,2097.0,5.218]
[1742826329503,3.0,2097.0,2096.4,25.211]
[1742826329717,4.76921,2096.8,2096.5,5.203]
[1742826330022,4.7694,2096.7,2096.5,5.203]
[1742826330412,6.02312,2096.6,2096.4,25.211]
[1742826330608,4.76985,2096.5,2096.4,25.211]
[1742826330820,4.76985,2096.5,2096.4,30.427]
[1742826331744,7.76985,2096.5,2096.4,30.427]
[1742826333242,7.66985,2096.5,2096.4,30.427]
[1742826333444,2.9,2096.5,2096.4,30.427]
[1742826334419,2.9,2096.5,2096.4,35.19708]
[1742826334622,5.722185,2097.1,2096.4,30.427]
[1742826334950,5.9956,2097.0,2096.6,4.76961]
[1742826335146,4.76902,2096.9,2096.4,35.197]
[1742826335340,4.76959,2096.7,2096.4,30.427]
[1742826335537,4.76971,2096.6,2096.4,30.427]
[1742826335937,9.53954,2096.6,2096.4,30.427]
[1742826336137,4.76944,2096.7,2096.4,30.427]
[1742826336344,4.76923,2096.8,2096.4,35.197]
[1742826337346,8.99559,2097.0,2096.4,30.427]
[1742826337555,3.0,2096.9,2096.5,4.76985]
[1742826337846,3.0,2096.9,2096.6,9.5389]
[1742826338044,7.76907,2096.9,2096.5,4.7698]
[1742826338348,7.76907,2096.9,2096.6,4.76961]
[1742826338527,7.76907,2096.9,2096.5,4.76968]
[1742826338723,3.0,2097.0,2096.5,4.76963]
[1742826339045,4.76905,2096.9,2096.5,4.76963]
[1742826339221,4.76905,2096.9,2096.4,35.19707]
[1742826339421,3.0,2096.9,2096.5,4.76984]
[1742826339626,3.0,2096.9,2096.4,30.427]
[1742826339826,3.0,2096.9,2096.6,4.76951]
[1742826340546,7.76899,2096.9,2096.5,4.76978]
[1742826340751,4.76947,2096.7,2096.4,30.427]
[1742826341147,4.76977,2096.6,2096.4,30.427]
[1742826341318,7.76976,2096.6,2096.5,5.172]
[1742826342047,7.76985,2096.5,2096.4,25.211]
[1742826342262,7.76985,2096.5,2096.4,30.383]
[1742826342566,9.023811,2096.5,2096.4,30.383]
[1742826343069,10.245811,2096.5,2096.4,30.383]
[1742826344277,4.222,2096.5,2096.4,30.383]
[1742826345136,3.0,2096.5,2096.4,30.383]
[1742826347364,7.76985,2096.5,2096.4,30.383]
[1742826348361,7.76985,2096.5,2096.4,30.351]
[1742826349132,3.0,2096.5,2096.4,35.12108]
[1742826349362,1.2631,2096.7,2096.5,4.76977]
[1742826349535,4.76904,2096.9,2096.5,4.76977]
[1742826349740,4.76904,2096.9,2096.4,30.351]
[1742826349741,4.76947,2096.7,2096.4,30.351]
[1742826350166,4.76894,2096.9,2096.4,30.351]
[1742826350377,3.0,2096.8,2096.7,4.76939]
[1742826350682,3.0,2096.9,2096.7,5.131]
[1742826350978,12.53814,2096.9,2096.7,5.131]
[1742826351349,7.76903,2096.9,2096.7,5.131]
[1742826351676,7.76914,2096.9,2096.7,5.131]
[1742826352031,3.0,2096.8,2096.7,5.131]
[1742826352230,7.76917,2096.8,2096.7,5.131]
[1742826353348,9.139771,2096.8,2096.7,5.131]
[1742826355850,4.76985,2096.5,2096.4,25.211]
[1742826356056,7.76985,2096.5,2096.4,25.211]
[1742826356394,9.04115,2096.5,2096.4,25.211]
[1742826357045,9.04115,2096.5,2096.4,30.31]
[1742826357272,3.0,2096.5,2096.4,30.31]
[1742826357641,4.77158,2095.8,2095.6,2.23005571]
[1742826357850,6.09,2095.7,2095.5,4.77211]
[1742826358046,6.09,2095.7,2095.6,5.137]
[1742826358248,10.86167,2095.7,2095.6,5.137]
[1742826358587,13.86167,2095.7,2095.6,5.137]
[1742826359075,4.77235,2095.4,2095.3,25.214]
[1742826359377,4.77235,2095.4,2095.3,30.348]
[1742826359582,4.77235,2095.4,2095.3,25.214]
[1742826359878,4.77235,2095.4,2095.3,30.346]
[1742826360073,5.97833,2095.5,2095.3,5.132]
[1742826360289,4.77235,2095.4,2095.3,5.132]
[1742826360494,4.7726,2095.3,2094.9,4.77345]
[1742826360664,6.09,2095.2,2095.0,5.126]
[1742826360864,6.09,2095.2,2094.9,4.77335]
[1742826361073,6.09,2095.2,2095.0,5.125]
[1742826361679,6.09,2095.2,2095.1,5.12]
[1742826361883,6.09,2095.2,2094.8,5.96714]
[1742826361884,10.86281,2095.2,2094.8,5.96714]
[1742826362092,10.86281,2095.2,2094.9,5.117]
[1742826362282,6.09,2095.1,2094.9,5.117]
[1742826362880,10.86305,2095.1,2094.9,5.117]
[1742826363195,6.09,2095.1,2094.9,5.117]
[1742826363501,6.09,2095.1,2094.9,9.89046]
[1742826363858,6.09,2095.1,2095.0,4.77326]
[1742826364065,6.09,2095.1,2094.9,9.89041]
[1742826364593,6.09,2095.1,2094.9,14.66382]
[1742826364797,6.09,2095.1,2095.0,4.77326]
[1742826365104,6.09,2095.1,2094.9,9.89041]
[1742826365294,6.09,2095.2,2094.9,5.117]
[1742826365494,4.77312,2095.1,2095.0,5.098]
[1742826365695,1.2768,2095.1,2095.0,5.098]
[1742826365908,6.09,2095.2,2095.0,5.098]
[1742826366069,6.09,2095.2,2095.1,4.77304]
[1742826366690,6.09,2095.4,2095.3,4.77258]
[1742826366890,6.09,2095.4,2095.0,9.87111]
[1742826367093,6.09,2095.4,2095.2,4.7727]
[1742826367411,6.09,2095.4,2095.3,4.77258]
[1742826368177,6.09,2095.4,2095.1,9.54594]
[1742826368488,6.09,2095.4,2095.1,9.54586]
[1742826368686,6.09,2095.4,2095.1,9.54587]
[1742826368887,6.09,2095.4,2095.1,4.77292]
[1742826369813,6.09,2095.4,2095.1,4.77298]
[1742826370375,6.09,2095.5,2095.2,9.54534]
[1742826370690,6.09,2095.5,2095.2,4.77267]
[1742826370890,6.09,2095.5,2095.1,29.99903]
[1742826371188,4.77253,2095.4,2095.1,25.226]
[1742826371386,4.77281,2095.2,2095.1,25.226]
[1742826371585,4.77281,2095.2,2095.1,30.306]
[1742826371787,6.09,2095.3,2095.1,30.306]
[1742826372710,6.09,2095.3,2095.2,4.77281]
[1742826372884,6.09,2095.3,2095.1,35.07898]
[1742826373284,6.09,2095.3,2095.1,30.306]
[1742826373494,6.09,2095.3,2095.1,35.07895]
[1742826373825,6.09,2095.3,2095.1,35.07894]
[1742826374021,6.09,2095.3,2095.2,4.77281]
[1742826374178,6.09,2095.5,2095.2,4.77258]
[1742826374513,6.09,2095.5,2095.3,4.77245]
[1742826374721,6.09,2095.5,2095.2,9.54541]
[1742826374882,6.09,2095.5,2095.3,4.77249]
[1742826375306,6.09,2095.5,2095.4,4.77235]
[1742826375505,6.09,2095.7,2095.3,4.77247]
[1742826375684,10.86168,2095.7,2095.3,4.77247]
[1742826375885,7.598438,2095.7,2095.1,30.306]
[1742826376105,4.77252,2095.4,2095.1,30.306]
[1742826376285,1.1901,2095.4,2095.1,25.226]
[1742826376484,5.96253,2095.4,2095.1,25.226]
[1742826376705,5.96245,2095.4,2095.2,5.067]
[1742826377021,5.96247,2095.4,2095.2,5.067]
[1742826377226,5.96246,2095.4,2095.2,5.067]
[1742826377522,4.77258,2095.3,2095.2,5.067]
[1742826377893,10.86258,2095.3,2095.2,5.067]
[1742826378093,6.09,2095.3,2095.2,5.067]
[1742826378287,10.86258,2095.3,2095.2,5.067]
[1742826381815,4.77281,2095.2,2095.1,25.226]
[1742826382011,6.455333,2095.2,2095.1,30.276]
[1742826382331,9.455333,2095.2,2095.1,30.276]
[1742826382533,10.86264,2095.3,2095.1,30.276]
[1742826382733,4.77281,2095.2,2095.1,30.276]
[1742826383356,10.86264,2095.3,2095.1,30.276]
[1742826383629,6.09,2095.3,2095.1,30.276]
[1742826383829,10.86268,2095.3,2095.1,30.276]
[1742826384003,4.77281,2095.2,2095.1,30.276]
[1742826384402,6.09,2095.3,2095.1,30.276]
[1742826384932,6.09,2095.3,2095.1,35.04895]
[1742826385130,6.09,2095.3,2095.1,35.04903]
[1742826385336,6.09,2095.3,2095.1,30.276]
[1742826386107,11.948964,2095.3,2095.1,30.276]
[1742826386438,10.86273,2095.3,2095.1,30.276]
[1742826387024,10.86272,2095.3,2095.1,30.276]
[1742826387223,5.98051,2095.2,2095.1,25.226]
[1742826387424,5.98051,2095.2,2095.1,30.26]
[1742826387616,8.14207,2095.2,2095.1,30.26]
[1742826388047,14.23207,2095.2,2095.1,30.26]
[1742826388243,4.77336,2095.0,2094.6,6.00207]
[1742826388405,4.77336,2095.0,2094.7,5.031]
[1742826388406,10.86336,2095.0,2094.7,5.031]
[1742826389247,6.09,2095.0,2094.5,25.231]
[1742826389429,5.38261,2094.9,2094.8,5.025]
[1742826390103,4.77388,2094.8,2094.5,25.231]
[1742826390307,4.77388,2094.8,2094.6,5.022]
[1742826390712,4.77388,2094.8,2094.5,25.231]
[1742826391040,7.672717,2094.8,2094.6,5.021]
[1742826392336,1.2742,2094.8,2094.6,5.021]
[1742826392538,6.04803,2094.8,2094.6,5.021]
[1742826392706,4.77395,2094.7,2094.6,5.021]
[1742826392907,6.04796,2094.8,2094.6,5.021]
[1742826393943,10.86395,2094.7,2094.5,25.231]
[1742826394152,6.465371,2094.6,2094.5,25.231]
[1742826394452,6.465371,2094.6,2094.5,30.234]
[1742826394648,1.691191,2094.6,2094.5,30.234]
[1742826394833,4.77418,2094.6,2094.5,30.234]
[1742826395515,10.86401,2094.7,2094.5,30.234]
[1742826396050,6.09,2094.7,2094.5,30.234]
[1742826397549,5.98198,2094.6,2094.5,25.231]
[1742826397855,7.666552,2094.6,2094.5,4.995]
[1742826398037,2.892372,2094.6,2094.5,4.995]
[1742826398243,7.666552,2094.6,2094.5,4.995]
[1742826398551,4.77418,2094.6,2094.5,4.995]
[1742826399820,13.86418,2094.6,2094.5,4.995]
[1742826400220,9.09,2094.6,2094.5,4.995]
[1742826400648,13.86418,2094.6,2094.5,4.995]
[1742826401058,13.86418,2094.6,2094.1,4.78529]
[1742826401222,4.7745,2094.5,2094.2,4.99]
[1742826401554,9.54908,2094.5,2094.2,4.99]
[1742826402153,5.02221027,2094.6,2094.2,4.99]
[1742826402451,7.77421,2094.6,2094.2,9.76501]
[1742826402651,6.09,2094.7,2094.2,4.99]
[1742826402869,6.09,2094.7,2094.5,4.77424]
[1742826403073,6.09,2094.7,2094.6,4.984]
[1742826403374,4.77382,2094.8,2094.6,4.984]
[1742826403528,9.54772,2094.8,2094.6,4.984]
[1742826403924,4.77395,2094.7,2094.6,4.984]
[1742826405748,5.94375,2094.7,2094.6,4.984]
[1742826405957,5.94375,2094.7,2094.1,5.94971]
[1742826405958,4.77455,2094.5,2094.1,5.94971]
[1742826406135,6.09,2094.6,2094.1,0.01]
[1742826406324,4.77497,2094.3,2094.2,4.982]
[1742826406524,6.09,2094.6,2094.3,4.77486]
[1742826406937,10.86419,2094.6,2094.2,10.98413]
[1742826407861,6.09,2094.6,2094.3,4.77469]
[1742826408029,10.86419,2094.6,2094.2,10.98413]
[1742826408360,15.63854,2094.6,2094.2,10.98413]
[1742826408555,10.86419,2094.6,2094.2,10.98413]
[1742826408953,4.77448,2094.5,2094.2,6.2091]
[1742826409132,10.86419,2094.6,2094.5,4.7744]
[1742826409133,6.09,2094.6,2094.5,4.7744]
[1742826409339,6.09,2094.6,2094.3,4.77469]
[1742826409638,10.86423,2094.6,2094.2,10.98412]
[1742826409844,6.09,2094.6,2094.2,6.2091]
[1742826410048,4.77464,2094.4,2094.2,4.982]
[1742826410285,9.54946,2094.4,2094.2,4.982]
[1742826410427,4.77486,2094.3,2094.2,4.982]
[1742826410834,4.77509,2094.2,2094.1,0.01]
[1742826411048,10.86509,2094.2,2094.1,4.982]
[1742826411633,10.86509,2094.2,2094.1,0.01]
[1742826411838,10.86509,2094.2,2094.1,4.979]
[1742826412140,12.05039,2094.2,2094.1,4.979]
[1742826412333,14.29640101,2094.2,2094.1,4.979]
[1742826412657,17.29640101,2094.2,2094.1,0.01]
[1742826412862,17.29640101,2094.2,2094.1,4.975]
[1742826414148,17.84640101,2094.2,2094.1,0.01]
[1742826416161,17.29640101,2094.2,2094.1,0.01]
[1742826417636,17.84640101,2094.2,2094.1,0.01]
[1742826417853,17.84640101,2094.2,2094.1,4.973]
[1742826418469,17.84640101,2094.2,2094.1,0.01]
[1742826418634,4.77647,2093.6,2093.2,31.22283]
[1742826418836,6.08,2093.6,2093.4,4.77689]
[1742826419435,6.08,2093.6,2093.4,9.55366]
[1742826419635,6.08,2093.6,2093.5,4.77668]
[1742826419876,6.08,2093.6,2093.5,9.74468]
[1742826420161,6.08,2093.9,2093.7,4.77615]
[1742826420566,4.77716,2093.3,2092.8,0.1723427]
[1742826420795,6.08,2093.2,2093.1,4.77755]
[1742826420937,6.08,2093.2,2093.1,6.02805]
[1742826421136,6.08,2093.2,2093.1,11.04605]
[1742826421341,10.85659,2093.6,2093.2,4.77733]
[1742826421670,6.08,2093.6,2093.5,4.77668]
[1742826421885,6.08,2093.8,2093.6,4.77633]
[1742826422190,6.08,2093.8,2093.5,5.019]
[1742826422391,10.8561,2093.8,2093.4,9.55358]
[1742826422692,10.8561,2093.8,2093.6,5.018]
[1742826422843,4.77623,2093.7,2093.6,5.018]
[1742826423460,4.77623,2093.7,2093.6,5.014]
[1742826423774,12.06894,2093.8,2093.6,5.014]
[1742826423775,10.85613,2093.8,2093.6,5.014]
[1742826423978,4.77623,2093.7,2093.6,5.014]
[1742826424971,6.04973,2093.7,2093.6,5.014]
[1742826425168,8.217905,2093.7,2093.6,5.014]
[1742826426150,14.297905,2093.7,2093.6,5.014]
[1742826427695,13.024405,2093.7,2093.6,5.014]
[1742826427900,6.08,2093.7,2093.6,9.79046]
[1742826428204,6.08,2094.0,2093.8,4.77582]
[1742826428903,6.08,2094.0,2093.9,9.77477]
[1742826429100,6.08,2094.2,2093.9,9.77477]
[1742826429255,6.08,2094.2,2094.0,4.77547]
[1742826429652,1.1748,2093.9,2092.9,1.1642]
[1742826429877,1.1748,2093.9,2092.3,7.45139658]
[1742826429878,7.2548,2093.9,2093.1,1.1642]
[1742826430177,4.77665,2093.6,2093.2,25.248]
[1742826430386,4.77665,2093.6,2093.2,30.02533]
[1742826430563,4.77631,2093.7,2093.3,4.77706]
[1742826430900,6.08,2093.8,2093.5,5.96068]
[1742826431068,6.08,2093.9,2093.6,4.7763]
[1742826431409,6.08,2093.9,2093.7,4.77608]
[1742826431703,1.2674,2094.3,2093.8,5.084]
[1742826431704,4.77563,2094.0,2093.8,5.084]
[1742826432001,1.563104,2094.0,2093.5,1.184]
[1742826432297,4.7762,2093.8,2093.6,5.086]
[1742826432505,4.77654,2093.6,2093.4,1.2237]
[1742826432810,4.77654,2093.6,2093.2,30.02528]
[1742826432811,4.77654,2093.6,2093.5,5.084]
[1742826433005,15.63322,2093.6,2093.2,26.5294]
[1742826433155,10.85654,2093.6,2093.3,5.082]
[1742826433356,4.77672,2093.5,2093.3,5.082]
[1742826433702,4.77672,2093.5,2093.2,26.5294]
[1742826433703,4.77714,2093.3,2093.2,25.248]
[1742826433883,4.77714,2093.3,2093.2,30.333]
[1742826434856,4.77714,2093.3,2093.2,30.329]
[1742826435057,10.85691,2093.4,2093.2,30.329]
[1742826435404,17.4285004,2093.4,2093.2,30.329]
[1742826435609,12.6514004,2093.4,2093.2,30.329]
[1742826436093,4.77714,2093.3,2093.2,30.329]
[1742826436302,12.6514004,2093.4,2093.2,30.329]
[1742826437469,12.6514904,2093.4,2093.2,30.329]
[1742826437876,7.8744904,2093.4,2093.2,30.329]
[1742826438196,6.08,2093.4,2093.3,4.77714]
[1742826438396,6.08,2093.4,2093.3,6.02304]
[1742826439559,6.08,2093.9,2093.6,4.77639]
[1742826439866,6.08,2093.9,2093.7,11.03622]
[1742826440461,6.08,2093.9,2093.8,4.776]
[1742826440706,6.08,2093.9,2093.7,11.03622]
[1742826441175,6.08,2093.9,2093.8,4.776]
[1742826442389,6.08,2093.9,2093.7,15.81236]
[1742826442774,6.08,2093.9,2093.8,4.776]
[1742826443517,4.77624,2093.7,2093.5,1.265]
[1742826443698,4.77624,2093.7,2093.6,5.053]
[1742826443861,10.85636,2093.7,2093.6,5.051]
[1742826444202,4.77669,2093.5,2093.2,26.513]
[1742826444406,0.477669,2093.4,2093.3,5.057]
[1742826444561,6.557669,2093.4,2093.3,5.057]
[1742826444766,12.589979,2093.4,2093.3,5.057]
[1742826445422,6.557669,2093.4,2093.3,5.057]
[1742826445767,11.334579,2093.4,2093.3,5.057]
[1742826446824,4.77714,2093.3,2093.2,25.248]
[1742826447022,5.9105979,2093.3,2093.2,30.297]
[1742826447227,11.9905979,2093.3,2093.2,30.297]
[1742826447505,11.9905979,2093.3,2092.0,1.07488137]
[1742826447506,1.2648,2093.0,2092.0,1.07488137]
[1742826447676,4.77883,2092.6,2092.1,9.90277]
[1742826447896,4.77887,2092.6,2092.1,9.90277]
[1742826448076,6.161062,2092.6,2092.1,9.90277]
[1742826448262,1.382192,2092.6,2092.2,4.7796]
[1742826448492,6.160932,2092.6,2092.2,4.7796]
[1742826448709,6.160932,2092.6,2092.1,9.90282]
[1742826449009,10.939872,2092.6,2092.1,9.90282]
[1742826449162,6.160932,2092.6,2092.1,9.90282]
[1742826449355,6.160932,2092.6,2092.1,14.68251]
[1742826449665,6.160932,2092.6,2092.1,9.90269]
[1742826449875,5.8730452,2092.5,2092.1,5.123]
[1742826450077,11.9530452,2092.5,2092.1,5.123]
[1742826450275,11.9529652,2092.5,2092.1,5.123]
[1742826450616,4.77965,2092.2,2092.1,0.01]
[1742826450910,10.85965,2092.2,2092.1,5.119]
[1742826451060,15.36556,2092.2,2092.1,0.01]
[1742826451881,16.08036,2092.2,2092.1,1e-05]
[1742826452457,7.77988,2092.1,2092.0,4.1e-06]
[1742826452661,10.346189,2092.1,2092.0,4.1e-06]
[1742826453572,4.7808,2091.7,2091.6,5.115]
[1742826453810,6.0799959,2091.7,2091.6,5.115]
[1742826454013,10.8607959,2091.7,2091.6,5.115]
[1742826454230,9.0799959,2091.7,2091.3,25.251]
[1742826454518,4.78148,2091.4,2091.3,25.251]
[1742826454667,4.38605759,2091.6,2091.3,30.37]
[1742826454867,4.7813,2091.5,2091.3,30.37]
[1742826455115,3.0,2091.6,2091.3,30.37]
[1742826455336,3.0,2091.6,2091.4,5.147]
[1742826455613,7.3031959,2091.7,2090.9,4.78259]
[1742826455614,4.78169,2091.4,2090.9,4.78259]
[1742826455772,4.78169,2091.4,2091.0,5.146]
[1742826456226,4.78159,2091.4,2090.9,4.78251]
[1742826456398,1.03031959,2091.5,2090.7,25.261]
[1742826456399,6.0799959,2091.3,2090.7,25.261]
[1742826456580,1.1968,2091.2,2090.8,9.93079]
[1742826456918,6.0799959,2091.1,2090.8,5.148]
[1742826457488,10.8622959,2091.1,2090.7,25.261]
[1742826457678,10.8624759,2091.0,2090.3,4.78397]
[1742826457989,10.8622059,2091.1,2090.5,4.78354]
[1742826458186,6.0799959,2091.1,2090.8,4.78281]
[1742826458372,6.0799959,2091.0,2090.9,5.17]
[1742826458701,5.81172959,2091.5,2090.9,5.17]
[1742826458702,6.0799959,2091.2,2091.0,4.78219]
[1742826458865,6.0799959,2091.2,2091.0,34.83647]
[1742826459074,6.0799959,2091.2,2091.1,5.192]
[1742826459372,7.16615449,2091.2,2091.1,5.192]
[1742826459788,6.0799959,2091.2,2091.1,5.192]
[1742826460805,12.1512359,2091.2,2091.1,5.192]
[1742826461169,4.78217,2091.1,2091.0,25.272]
[1742826461401,12.1512359,2091.2,2091.0,5.192]
[1742826461579,1.69330559,2091.1,2091.0,5.192]
[1742826461790,1.69330559,2091.1,2091.0,5.194]
[1742826461988,7.77330149,2091.1,2090.4,30.05567]
[1742826462191,10.8622959,2091.1,2090.6,4.78318]
[1742826462387,4.7825,2091.0,2090.5,9.97531]
[1742826462791,6.0799959,2091.1,2090.6,4.78313]
[1742826462999,6.0799959,2091.1,2090.7,4.78308]
[1742826463211,6.0799959,2091.1,2091.0,4.7824]
[1742826463409,6.0799959,2091.1,2091.0,9.9694]
[1742826463912,6.0799959,2091.1,2091.0,9.9674]
[1742826465434,6.0799959,2091.1,2091.0,35.2444]
[1742826465782,6.0799959,2091.6,2091.5,4.78125]
[1742826465977,6.0799959,2091.6,2091.5,9.95925]
[1742826466911,6.0799959,2092.0,2091.7,4.78057]
[1742826467114,1.2386,2091.8,2090.3,4.784]
[1742826467286,1.2386,2091.8,2090.6,1.2749]
[1742826467613,6.01853,2092.1,2091.6,4.7809]
[1742826467814,6.01853,2092.1,2091.7,5.267]
[1742826467815,10.8601959,2092.0,2091.7,5.267]
[1742826467982,10.8601959,2092.0,2091.8,5.273]
[1742826468183,12.54806849,2092.0,2091.8,5.273]
[1742826468716,6.0799959,2092.0,2091.8,10.05353]
[1742826469013,6.0799959,2092.3,2092.0,4.78008]
[1742826469201,6.0799959,2092.3,2092.0,4.77993]
[1742826469405,6.0799959,2092.6,2092.1,4.77972]
[1742826469582,7.28883149,2092.6,2092.2,10.04551]
[1742826469781,7.28883149,2092.6,2092.3,4.77942]
[1742826469986,7.28883149,2092.6,2092.2,10.04551]
[1742826470623,6.04626,2093.0,2092.3,1.174]
[1742826470913,4.77861,2092.7,2092.3,5.95328]
[1742826471115,4.77876,2092.6,2092.2,5.266]
[1742826471317,5.734497,2092.6,2092.2,5.266]
[1742826471518,5.734497,2092.6,2092.1,9.55951]
[1742826471519,5.734497,2092.6,2092.3,5.269]
[1742826471819,4.779,2092.5,2092.3,5.269]
[1742826472188,6.0799959,2092.4,2092.0,1.2116]
[1742826472385,6.0799959,2092.4,2092.2,4.77942]